fUSD/lending_fUSD_20250127
["ID","MTS","AMOUNT","RATE_DAILY","PERIOD"]
[350632739,1738007525775,-643.726655,0.00012329,2]
[350632740,1738007525784,-172.749103,0.00012329,2]
[350632741,1738007525793,-172.749103,0.00012329,2]
[350632742,1738007525802,-172.749103,0.00012329,2]
[350632743,1738007525811,-643.726655,0.00012329,2]
[350632744,1738007525820,-172.749103,0.00012329,2]
[350632745,1738007525829,-643.726655,0.00012329,2]
[350632746,1738007525838,-172.749103,0.00012329,2]
[350632747,1738007525847,-643.726655,0.00012329,2]
[350632748,1738007525856,-643.726655,0.00012329,2]
[350632749,1738007525865,-172.749103,0.00012329,2]
[350632750,1738007525875,-643.726655,0.00012329,2]
[350632751,1738007525884,-172.749103,0.00012329,2]
[350632752,1738007525893,-643.726655,0.00012329,2]
[350632753,1738007525902,-172.749103,0.00012329,2]
[350632754,1738007525911,-643.726655,0.00012329,2]
[350632755,1738007525921,-172.749103,0.00012329,2]
[350632756,1738007525930,-643.726655,0.00012329,2]
[350632757,1738007525939,-172.749103,0.00012329,2]
[350632758,1738007525951,-643.726655,0.00012329,2]
[350632759,1738007525959,-172.749103,0.00012329,2]
[350632760,1738007525969,-643.726655,0.00012329,2]
[350632761,1738007525979,-172.749095,0.00012329,2]
[350632762,1738007525988,-643.726655,0.00012329,2]
[350632763,1738007525998,-643.726655,0.00012329,2]
[350632764,1738007526008,-643.726655,0.00012329,2]
[350632765,1738007526017,-643.726655,0.00012329,2]
[350632766,1738007526030,-643.726655,0.00012329,2]
[350632767,1738007526046,-643.726655,0.00012329,2]
[350632768,1738007526061,-643.726655,0.00012329,2]
[350632769,1738007526073,-643.726654,0.00012329,2]
[350632770,1738007526089,-2542.50865,0.00012329,2]
[350632771,1738007526103,-2542.50865,0.00012329,2]
[350632772,1738007526122,-2542.50865,0.00012329,2]
[350632773,1738007526138,-2542.50865,0.00012329,2]
[350632774,1738007526152,-2542.50865,0.00012329,2]
[350632775,1738007526164,-2542.50865,0.00012329,2]
[350632776,1738007526179,-2542.50865,0.00012329,2]
[350632777,1738007526195,-2542.50865,0.00012329,2]
[350632778,1738007526209,-2542.50865,0.00012329,2]
[350632779,1738007526225,-2542.50865,0.00012329,2]
[350632780,1738007526239,-2542.50865,0.00012329,2]
[350632781,1738007526255,-2542.50865,0.00012329,2]
[350632782,1738007526268,-2542.50865,0.00012329,2]
[350632783,1738007526283,-2542.50865,0.00012329,2]
[350632784,1738007526298,-2542.50865,0.00012329,2]
[350632785,1738007526314,-2542.50865,0.00012329,2]
[350632786,1738007526327,-2542.50865,0.00012329,2]
[350632787,1738007526339,-2542.50865,0.00012329,2]
[350632788,1738007526352,-2542.50865,0.00012329,2]
[350632789,1738007526369,-151.0,0.00012329,2]
[350632790,1738007526379,-2542.50864,0.00012329,2]
[350632791,1738007526390,-159.906057,0.00012329,2]
[350632792,1738007526403,-265.106929,0.00012329,2]
[350632793,1738007526417,-265.106929,0.00012329,2]
[350632794,1738007526429,-265.106929,0.00012329,2]
[350632795,1738007526445,-265.106929,0.00012329,2]
[350632796,1738007526461,-265.106929,0.00012329,2]
[350632797,1738007526473,-265.106929,0.00012329,2]
[350632798,1738007526486,-265.106929,0.00012329,2]
[350632799,1738007526498,-265.106929,0.00012329,2]
[350632800,1738007526511,-265.106929,0.00012329,2]
[350632801,1738007526523,-265.106929,0.00012329,2]
[350632802,1738007526536,-265.106929,0.00012329,2]
[350632803,1738007526548,-265.106929,0.00012329,2]
[350632804,1738007526561,-265.106929,0.00012329,2]
[350632805,1738007526572,-265.106929,0.00012329,2]
[350632806,1738007526587,-265.106929,0.00012329,2]
[350632807,1738007526600,-265.106929,0.00012329,2]
[350632808,1738007526612,-265.106929,0.00012329,2]
[350632809,1738007526624,-265.106929,0.00012329,2]
[350632810,1738007526636,-265.106929,0.00012329,2]
[350632811,1738007526649,-265.106924,0.00012329,2]
[350632812,1738007526661,-151.0,0.00012329,2]
[350632813,1738007526673,-151.0,0.00012329,2]
[350632814,1738007526685,-151.0,0.00012329,2]
[350632815,1738007526699,-151.0,0.00012329,2]
[350632816,1738007526712,-151.0,0.00012329,2]
[350632817,1738007526724,-164.033217,0.00012329,2]
[350632818,1738007526736,-2315.090927,0.00012329,2]
[350632819,1738007526748,-2315.090927,0.00012329,2]
[350632820,1738007526760,-2315.090927,0.00012329,2]
[350632821,1738007526772,-2315.090927,0.00012329,2]
[350632822,1738007526784,-2315.090927,0.00012329,2]
[350632823,1738007526801,-2315.090927,0.00012329,2]
[350632824,1738007526813,-2315.090927,0.00012329,2]
[350632825,1738007526825,-2315.090927,0.00012329,2]
[350632826,1738007526837,-2315.090927,0.00012329,2]
[350632827,1738007526849,-2315.090927,0.00012329,2]
[350632828,1738007526861,-2315.090927,0.00012329,2]
[350632829,1738007526873,-2315.090927,0.00012329,2]
[350632830,1738007526885,-2315.090927,0.00012329,2]
[350632831,1738007526897,-2315.090927,0.00012329,2]
[350632832,1738007526909,-2315.090927,0.00012329,2]
[350632833,1738007526921,-2315.090927,0.00012329,2]
[350632834,1738007526933,-2315.090927,0.00012329,2]
[350632835,1738007526945,-2315.090927,0.00012329,2]
[350632836,1738007526959,-2315.090927,0.00012329,2]
[350632837,1738007526972,-2315.090935,0.00012329,2]
[350632838,1738007526988,-769.426296,0.00012329,2]
[350632839,1738007527001,-769.426296,0.00012329,2]
[350632840,1738007527013,-769.426296,0.00012329,2]
[350632841,1738007527025,-1418.3614,0.00012329,2]
[350632842,1738007527037,-769.426296,0.00012329,2]
[350632843,1738007527048,-1418.3614,0.00012329,2]
[350632844,1738007527061,-1418.3614,0.00012329,2]
[350632845,1738007527071,-769.426296,0.00012329,2]
[350632846,1738007527082,-769.426296,0.00012329,2]
[350632847,1738007527093,-1418.3614,0.00012329,2]
[350632848,1738007527104,-769.426296,0.00012329,2]
[350632849,1738007527118,-1418.3614,0.00012329,2]
[350632850,1738007527130,-769.426296,0.00012329,2]
[350632851,1738007527141,-1418.3614,0.00012329,2]
[350632852,1738007527153,-769.426296,0.00012329,2]
[350632853,1738007527164,-1418.3614,0.00012329,2]
[350632854,1738007527175,-769.426296,0.00012329,2]
[350632855,1738007527186,-1418.3614,0.00012329,2]
[350632856,1738007527199,-769.426296,0.00012329,2]
[350632857,1738007527210,-1418.3614,0.00012329,2]
[350632858,1738007527222,-769.426296,0.00012329,2]
[350632859,1738007527233,-1418.3614,0.00012329,2]
[350632860,1738007527245,-769.426296,0.00012329,2]
[350632861,1738007527256,-1418.3614,0.00012329,2]
[350632862,1738007527268,-769.426296,0.00012329,2]
[350632863,1738007527279,-1418.3614,0.00012329,2]
[350632864,1738007527291,-769.426296,0.00012329,2]
[350632865,1738007527303,-1418.3614,0.00012329,2]
[350632866,1738007527314,-769.426296,0.00012329,2]
[350632867,1738007527327,-1418.3614,0.00012329,2]
[350632868,1738007527339,-769.426296,0.00012329,2]
[350632869,1738007527350,-1418.3614,0.00012329,2]
[350632870,1738007527361,-769.426296,0.00012329,2]
[350632871,1738007527372,-769.426296,0.00012329,2]
[350632872,1738007527383,-1418.3614,0.00012329,2]
[350632873,1738007527394,-769.426287,0.00012329,2]
[350632874,1738007527405,-1418.3614,0.00012329,2]
[350632875,1738007527415,-1418.3614,0.00012329,2]
[350632876,1738007527426,-1418.3614,0.00012329,2]
[350632877,1738007527438,-1418.361391,0.00012329,2]
[350632878,1738007527450,-774.003124,0.00012329,2]
[350632879,1738007527462,-774.003124,0.00012329,2]
[350632880,1738007527473,-774.003124,0.00012329,2]
[350632881,1738007527485,-774.003124,0.00012329,2]
[350632882,1738007527496,-774.003124,0.00012329,2]
[350632883,1738007527507,-774.003124,0.00012329,2]
[350632884,1738007527518,-774.003124,0.00012329,2]
[350632885,1738007527529,-774.003124,0.00012329,2]
[350632886,1738007527540,-774.003124,0.00012329,2]
[350632887,1738007527551,-774.003124,0.00012329,2]
[350632888,1738007527563,-774.003124,0.00012329,2]
[350632889,1738007527574,-151.0,0.00012329,2]
[350632890,1738007527585,-774.003124,0.00012329,2]
[350632891,1738007527596,-774.003124,0.00012329,2]
[350632892,1738007527606,-151.0,0.00012329,2]
[350632893,1738007527617,-774.003124,0.00012329,2]
[350632894,1738007527628,-151.0,0.00012329,2]
[350632895,1738007527639,-774.003124,0.00012329,2]
[350632896,1738007527650,-2871.014123,0.00012329,2]
[350632897,1738007527661,-774.003124,0.00012329,2]
[350632898,1738007527672,-151.0,0.00012329,2]
[350632899,1738007527683,-2871.014123,0.00012329,2]
[350632900,1738007527695,-774.003124,0.00012329,2]
[350632901,1738007527706,-151.0,0.00012329,2]
[350632902,1738007527717,-2871.014123,0.00012329,2]
[350632903,1738007527727,-774.003124,0.00012329,2]
[350632904,1738007527738,-151.0,0.00012329,2]
[350632905,1738007527749,-2871.014123,0.00012329,2]
[350632906,1738007527760,-774.003124,0.00012329,2]
[350632907,1738007527772,-2871.014123,0.00012329,2]
[350632908,1738007527783,-151.0,0.00012329,2]
[350632909,1738007527794,-774.003133,0.00012329,2]
[350632910,1738007527806,-151.0,0.00012329,2]
[350632911,1738007527817,-2871.014123,0.00012329,2]
[350632912,1738007527828,-151.0,0.00012329,2]
[350632913,1738007527839,-2871.014123,0.00012329,2]
[350632914,1738007527850,-151.0,0.00012329,2]
[350632915,1738007527860,-2871.014123,0.00012329,2]
[350632916,1738007527871,-151.0,0.00012329,2]
[350632917,1738007527883,-2871.014123,0.00012329,2]
[350632918,1738007527894,-151.0,0.00012329,2]
[350632919,1738007527905,-2871.014123,0.00012329,2]
[350632920,1738007527917,-151.0,0.00012329,2]
[350632921,1738007527928,-2871.014123,0.00012329,2]
[350632922,1738007527939,-151.0,0.00012329,2]
[350632923,1738007527955,-2871.014123,0.00012329,2]
[350632924,1738007527966,-151.0,0.00012329,2]
[350632925,1738007527978,-2871.014123,0.00012329,2]
[350632926,1738007527989,-151.0,0.00012329,2]
[350632927,1738007528001,-2871.014123,0.00012329,2]
[350632928,1738007528012,-151.0,0.00012329,2]
[350632929,1738007528022,-2871.014123,0.00012329,2]
[350632930,1738007528033,-247.16968,0.00012329,2]
[350632931,1738007528044,-2871.014123,0.00012329,2]
[350632932,1738007528055,-2871.014123,0.00012329,2]
[350632933,1738007528066,-2871.014123,0.00012329,2]
[350632934,1738007528077,-2871.014123,0.00012329,2]
[350632935,1738007528087,-2871.014127,0.00012329,2]
[350632936,1738007528098,-387.564225,0.00012329,2]
[350632937,1738007528109,-387.564225,0.00012329,2]
[350632938,1738007528123,-387.564225,0.00012329,2]
[350632939,1738007528134,-516.102987,0.00012329,2]
[350632940,1738007528144,-387.564225,0.00012329,2]
[350632941,1738007528155,-516.102987,0.00012329,2]
[350632942,1738007528167,-387.564225,0.00012329,2]
[350632943,1738007528178,-516.102987,0.00012329,2]
[350632944,1738007528189,-387.564225,0.00012329,2]
[350632945,1738007528204,-516.102987,0.00012329,2]
[350632946,1738007528216,-387.564225,0.00012329,2]
[350632947,1738007528226,-516.102987,0.00012329,2]
[350632948,1738007528237,-387.564225,0.00012329,2]
[350632949,1738007528248,-387.564225,0.00012329,2]
[350632950,1738007528259,-516.102987,0.00012329,2]
[350632951,1738007528270,-387.564225,0.00012329,2]
[350632952,1738007528281,-516.102987,0.00012329,2]
[350632953,1738007528292,-1000.0,0.00012348,2]
[350632954,1738007528304,-500.0,0.0001246,2]
[350632955,1738007528316,-294.23079263,0.000125,2]
[350632956,1738007528327,-286.38094087,0.00012597,2]
[350632957,1738007528339,-61891.09,0.00012603,2]
[350632958,1738007528351,-1266.55,0.00012733,2]
[350632959,1738007528362,-251.54,0.00012877,2]
[350632960,1738007528375,-6955.2953935,0.00012991,2]
[350632961,1738007528386,-500.0,0.00013,2]
[350632962,1738007528397,-3500.0,0.00013,2]
[350632963,1738007528408,-4234.31710374,0.00013,2]
[350632964,1738007528419,-437.61172231,0.00013,2]
[350632965,1738007528430,-1000.0,0.00013,2]
[350632966,1738007528441,-1080.0,0.00013,2]
[350632967,1738007528456,-150.0,0.00013,2]
[350632968,1738007528466,-24627.592,0.00013,2]
[350632969,1738007528477,-410.59,0.00013,2]
[350632970,1738007528488,-410.59,0.00013,2]
[350632971,1738007528499,-410.59,0.00013,2]
[350632972,1738007528510,-410.59,0.00013,2]
[350632973,1738007528522,-410.59,0.00013,2]
[350632974,1738007528533,-410.59,0.00013,2]
[350632975,1738007528544,-410.59,0.00013,2]
[350632976,1738007528555,-410.59,0.00013,2]
[350632977,1738007528567,-410.59,0.00013,2]
[350632978,1738007528578,-410.59,0.00013,2]
[350632979,1738007528590,-410.59,0.00013,2]
[350632980,1738007528601,-410.59,0.00013,2]
[350632981,1738007528613,-410.59,0.00013,2]
[350632982,1738007528623,-410.59,0.00013,2]
[350632983,1738007528635,-410.59,0.00013,2]
[350632984,1738007528646,-410.59,0.00013,2]
[350632985,1738007528657,-410.59,0.00013,2]
[350632986,1738007528668,-410.59,0.00013,2]
[350632987,1738007528680,-410.59,0.00013,2]
[350632988,1738007528691,-410.59,0.00013,2]
[350632989,1738007529210,-410.59,0.00013,2]
[350632990,1738007529223,-410.59,0.00013,2]
[350632991,1738007529234,-410.59,0.00013,2]
[350632992,1738007529244,-410.59,0.00013,2]
[350632993,1738007529255,-410.59,0.00013,2]
[350632994,1738007529265,-410.59,0.00013,2]
[350632995,1738007529275,-410.59,0.00013,2]
[350632996,1738007529285,-410.59,0.00013,2]
[350632997,1738007529295,-410.59,0.00013,2]
[350632998,1738007529305,-410.59,0.00013,2]
[350632999,1738007529314,-410.59,0.00013,2]
[350633000,1738007529324,-410.59,0.00013,2]
[350633001,1738007529333,-410.59,0.00013,2]
[350633002,1738007529343,-410.59,0.00013,2]
[350633003,1738007529352,-410.59,0.00013,2]
[350633004,1738007529363,-410.59,0.00013,2]
[350633005,1738007529372,-410.59,0.00013,2]
[350633006,1738007529382,-410.59,0.00013,2]
[350633007,1738007529392,-410.59,0.00013,2]
[350633008,1738007529402,-410.59,0.00013,2]
[350633009,1738007529413,-410.59,0.00013,2]
[350633010,1738007529423,-410.59,0.00013,2]
[350633011,1738007529432,-410.59,0.00013,2]
[350633012,1738007529441,-410.59,0.00013,2]
[350633013,1738007529454,-410.59,0.00013,2]
[350633014,1738007529464,-410.59,0.00013,2]
[350633015,1738007529473,-410.59,0.00013,2]
[350633016,1738007529483,-410.59,0.00013,2]
[350633017,1738007529492,-410.59,0.00013,2]
[350633018,1738007529501,-410.59,0.00013,2]
[350633019,1738007529511,-410.59,0.00013,2]
[350633020,1738007529520,-410.59,0.00013,2]
[350633021,1738007529529,-410.59,0.00013,2]
[350633022,1738007529539,-410.59,0.00013,2]
[350633023,1738007529548,-410.59,0.00013,2]
[350633024,1738007529558,-410.59,0.00013,2]
[350633025,1738007529567,-410.59,0.00013,2]
[350633026,1738007529576,-410.59,0.00013,2]
[350633027,1738007529586,-410.59,0.00013,2]
[350633028,1738007529595,-410.59,0.00013,2]
[350633029,1738007529604,-410.59,0.00013,2]
[350633030,1738007529613,-410.59,0.00013,2]
[350633031,1738007529623,-410.59,0.00013,2]
[350633032,1738007529632,-410.59,0.00013,2]
[350633033,1738007529641,-410.59,0.00013,2]
[350633034,1738007529651,-410.59,0.00013,2]
[350633035,1738007529660,-410.59,0.00013,2]
[350633036,1738007529669,-410.59,0.00013,2]
[350633037,1738007529678,-410.59,0.00013,2]
[350633038,1738007529687,-410.59,0.00013,2]
[350633039,1738007529699,-410.59,0.00013,2]
[350633040,1738007529708,-410.59,0.00013,2]
[350633041,1738007529717,-410.59,0.00013,2]
[350633042,1738007529726,-410.59,0.00013,2]
[350633043,1738007529736,-410.59,0.00013,2]
[350633044,1738007529745,-410.59,0.00013,2]
[350633045,1738007529757,-410.59,0.00013,2]
[350633046,1738007529767,-410.59,0.00013,2]
[350633047,1738007529782,-5112.8009401,0.0001305,2]
[350633048,1738007529791,-10000.0,0.00013088,2]
[350633049,1738007529801,-433.0,0.0001309,2]
[350633050,1738007529810,-150.31,0.00013181,2]
[350633051,1738007529820,-7070.0,0.00013296,2]
[350633052,1738007529829,-13551.0,0.00013296,2]
[350633053,1738007529838,-10359.0,0.00013296,2]
[350633054,1738007529847,-153.0,0.00013385,2]
[350633055,1738007529856,-153.0,0.00013385,2]
[350633056,1738007529866,-153.0,0.00013387,2]
[350633057,1738007529875,-153.0,0.00013387,2]
[350633058,1738007529884,-153.0,0.00013395,2]
[350633059,1738007529893,-153.0,0.00013395,2]
[350633060,1738007529902,-153.0,0.00013397,2]
[350633061,1738007529911,-153.0,0.00013397,2]
[350633062,1738007529920,-153.0,0.00013406,2]
[350633063,1738007529929,-153.0,0.00013406,2]
[350633064,1738007529938,-153.0,0.00013407,2]
[350633065,1738007529948,-153.0,0.00013407,2]
[350633066,1738007529957,-260.24,0.00013408,2]
[350633067,1738007529966,-153.0,0.00013415,2]
[350633068,1738007529976,-153.0,0.00013415,2]
[350633069,1738007529985,-153.0,0.00013417,2]
[350633070,1738007529995,-500.0,0.00013424,2]
[350633071,1738007530006,-378.85175952,0.00013424,2]
[350633072,1738007530015,-153.0,0.00013425,2]
[350633073,1738007530025,-153.0,0.00013425,2]
[350633074,1738007530034,-1000.0,0.000135,2]
[350633075,1738007530043,-1000.0,0.00013583,2]
[350633076,1738007530052,-2300.0,0.00013616,2]
[350633077,1738007530062,-900.0,0.00013616,2]
[350633078,1738007530071,-700.0,0.0001367,2]
[350633079,1738007530080,-400.0,0.0001367,2]
[350633080,1738007530089,-872.0709235,0.00013689,2]
[350633081,1738007530099,-3110.32,0.00013698,2]
[350633082,1738007530108,-3110.32,0.00013698,2]
[350633083,1738007530120,-3110.32,0.00013698,2]
[350633084,1738007530129,-3110.32,0.00013698,2]
[350633085,1738007530138,-3110.32,0.00013698,2]
[350633086,1738007530158,-3110.32,0.00013698,2]
[350633087,1738007530178,-3110.32,0.00013698,2]
[350633088,1738007530187,-3110.32,0.00013698,2]
[350633089,1738007530197,-3110.32,0.00013698,2]
[350633090,1738007530207,-3110.32,0.00013698,2]
[350633091,1738007530216,-3110.32,0.00013698,2]
[350633092,1738007530225,-3110.32,0.00013698,2]
[350633093,1738007530234,-3110.32,0.00013698,2]
[350633094,1738007530243,-3110.32,0.00013698,2]
[350633095,1738007530253,-3110.32,0.00013698,2]
[350633096,1738007530262,-3110.32,0.00013698,2]
[350633097,1738007530271,-3110.32,0.00013698,2]
[350633098,1738007530280,-3110.32,0.00013698,2]
[350633099,1738007530290,-3110.32,0.00013698,2]
[350633100,1738007530302,-3110.32,0.00013698,2]
[350633101,1738007530311,-3110.32,0.00013698,2]
[350633102,1738007530321,-3110.32,0.00013698,2]
[350633103,1738007530330,-3110.32,0.00013698,2]
[350633104,1738007530339,-3110.40458094,0.00013698,2]
[350633105,1738007530349,-1021.35581653,0.00013698,2]
[350633106,1738007530359,-518.79842922,0.00013698,2]
[350633107,1738007530368,-3049.05063397,0.00013698,2]
[350633108,1738007530377,-500.0,0.00013698,2]
[350633109,1738007530386,-524.98318116,0.00013698,2]
[350633110,1738007530396,-500.0,0.00013699,2]
[350633111,1738007530405,-500.0,0.00013699,2]
[350633112,1738007530415,-500.0,0.00013699,2]
[350633113,1738007530424,-500.0,0.00013699,2]
[350633114,1738007530434,-500.0,0.00013699,2]
[350633115,1738007530443,-500.0,0.00013699,2]
[350633116,1738007530454,-500.0,0.00013699,2]
[350633117,1738007530463,-500.0,0.00013699,2]
[350633118,1738007530472,-500.0,0.00013699,2]
[350633119,1738007530482,-500.0,0.00013699,2]
[350633120,1738007530491,-2193.55152846,0.00013699,2]
[350633121,1738007530500,-4000.0,0.00013699,2]
[350633122,1738007530509,-19455.5,0.00013699,2]
[350633123,1738007530518,-883.47,0.00013699,2]
[350633124,1738007530527,-32255.19,0.00013699,2]
[350633125,1738007530536,-500.0,0.00013699,2]
[350633126,1738007530545,-200.0,0.00013699,2]
[350633127,1738007530555,-960.74,0.00013699,2]
[350633128,1738007530564,-10022.18,0.00013699,2]
[350633129,1738007530573,-1561.66,0.00013699,2]
[350633130,1738007530583,-500.0,0.00013699,2]
[350633131,1738007530592,-500.0,0.00013699,2]
[350633132,1738007530601,-500.0,0.00013699,2]
[350633133,1738007530610,-500.0,0.00013699,2]
[350633134,1738007530619,-500.0,0.00013699,2]
[350633135,1738007530628,-315.77764132,0.00013699,2]
[350633136,1738007530637,-301.72097616,0.00013699,2]
[350633137,1738007530646,-520.40892008,0.00013699,2]
[350633138,1738007530655,-531.22144088,0.00013699,2]
[350633139,1738007530665,-152.5139699,0.00013699,2]
[350633140,1738007530673,-152.04029072,0.00013699,2]
[350633141,1738007530682,-357.62522182,0.00013699,2]
[350633142,1738007530691,-206.88679556,0.00013699,2]
[350633143,1738007530701,-500.0,0.00013699,2]
[350633144,1738007530710,-500.97932743,0.00013699,2]
[350633145,1738007530719,-500.0,0.00013699,2]
[350633146,1738007530728,-323.92872518,0.00013699,2]
[350633147,1738007530737,-160.20421408,0.00013699,2]
[350633148,1738007530747,-500.0,0.00013699,2]
[350633149,1738007530756,-500.0,0.00013699,2]
[350633150,1738007530765,-516.87317678,0.00013699,2]
[350633151,1738007530774,-517.96326242,0.00013699,2]
[350633152,1738007530784,-161.19913093,0.00013699,2]
[350633153,1738007530793,-500.0,0.00013699,2]
[350633154,1738007530802,-500.0,0.00013699,2]
[350633155,1738007530811,-500.0,0.00013699,2]
[350633156,1738007530821,-500.0,0.00013699,2]
[350633157,1738007530830,-556.80400292,0.00013699,2]
[350633158,1738007530839,-17722.23,0.000137,2]
[350633159,1738007530848,-17722.23,0.000137,2]
[350633160,1738007530857,-2193.55152846,0.00013753,2]
[350633161,1738007530866,-2193.55152846,0.00013836,2]
[350633162,1738007530875,-2193.55152846,0.0001389,2]
[350633163,1738007530884,-2269.03420049,0.000139,5]
[350633164,1738007530894,-1001.97535354,0.00013911,2]
[350633165,1738007530903,-455.59,0.00013955,2]
[350633166,1738007530913,-700.0,0.0001397,2]
[350633167,1738007530922,-400.0,0.0001397,2]
[350633168,1738007530932,-2193.55152846,0.00013973,2]
[350633169,1738007530942,-554.0,0.00014,2]
[350633170,1738007530953,-3964.13416408,0.00014,2]
[350633171,1738007530963,-960.0,0.00014,2]
[350633172,1738007530972,-5000.0,0.00014,2]
[350633173,1738007530982,-2193.55152846,0.00014027,2]
[350633174,1738007530992,-2193.55152846,0.0001411,2]
[350633175,1738007531002,-2193.55152846,0.00014164,2]
[350633176,1738007531012,-700.0,0.0001417,2]
[350633177,1738007531021,-400.0,0.0001417,2]
[350633178,1738007531031,-2193.55152846,0.00014219,2]
[350633179,1738007531040,-1000.0,0.00014247,2]
[350633180,1738007531049,-1000.0,0.00014247,2]
[350633181,1738007531059,-739.23020909,0.00014247,2]
[350633182,1738007531069,-1000.0,0.00014247,2]
[350633183,1738007531078,-1000.0,0.00014247,2]
[350633184,1738007531087,-690.24146174,0.00014247,2]
[350633185,1738007531097,-1000.0,0.00014247,2]
[350633186,1738007531106,-1000.0,0.00014247,2]
[350633187,1738007531117,-449.04517739,0.00014247,2]
[350633188,1738007531128,-2193.55152846,0.00014301,2]
[350633189,1738007531138,-478.0,0.00014354,2]
[350633190,1738007531147,-2193.55152846,0.00014356,2]
[350633191,1738007531158,-883.47,0.00014384,2]
[350633192,1738007531167,-9855.58342716,0.0001439,2]
[350633193,1738007531177,-2193.55152846,0.00014438,2]
[350633194,1738007531187,-260.24,0.00014627,2]
[350633195,1738007531198,-1000.0,0.00014818,2]
[350633196,1738007531208,-150.31,0.00014828,2]
[350633197,1738007531217,-7870.23947946,0.000149,2]
[350633198,1738007531226,-215.31780584,0.000149,2]
[350633199,1738007531235,-215.31780584,0.000149,2]
[350633200,1738007531244,-215.31780584,0.000149,2]
[350633201,1738007531253,-2300.0,0.00014986,2]
[350633202,1738007531263,-900.0,0.00014986,2]
[350633203,1738007531272,-1266.55,0.00014989,2]
[350633204,1738007531282,-6839.2020143,0.0001499,2]
[350633205,1738007531292,-857.5148688,0.0001499,2]
[350633206,1738007531301,-814.19600418,0.00015,2]
[350633207,1738007531311,-1958.14009698,0.00015,2]
[350633208,1738007531321,-18124.12846053,0.00015,2]
[350633209,1738007531330,-14899.65982707,0.00015,2]
[350633210,1738007531340,-8050.24942669,0.00015,2]
[350633211,1738007531349,-10000.0,0.00015,2]
[350633212,1738007531359,-1359383.89820644,0.00015,2]
[350633213,1738007531368,-4349.0,0.00015,2]
[350633214,1738007531378,-2327.96484234,0.00015,3]
[350633215,1738007531387,-29775.05585445,0.00015,2]
[350633216,1738007533266,-500.0,0.00010958,2]
[350633217,1738007533276,-505.70662178,0.00010958,2]
[350633218,1738007533286,-880.64812806,0.00015,2]
[350633219,1738007533297,-1533.348258,0.00015,2]
[350633220,1738007533308,-440.25794124,0.00015,2]
[350633221,1738007533319,-2310.30483518,0.00015,2]
[350633222,1738007533329,-550.0,0.00015,2]
[350633223,1738007533339,-550.0,0.00015,2]
[350633224,1738007533348,-9089.69516482,0.00015,2]
[350633225,1738007533368,-410.59,0.00013,2]
[350633226,1738007533377,-313.410035,0.00015,2]
[350633227,1738007533389,-1183.499996,0.00015,2]
[350633228,1738007533446,-183.21551019,0.00010958,2]
[350633229,1738007533459,-127.02459686,0.00010958,2]
[350633230,1738007533472,-372.97540314,0.00010958,2]
[350633231,1738007533482,-500.0,0.00010958,2]
[350633232,1738007533492,-516.102987,0.00012329,2]
[350633233,1738007533502,-202.43473098,0.00012329,2]
[350633234,1738007533513,-185.12949402,0.00012329,2]
[350633235,1738007533523,-410.59,0.00013,2]
[350633236,1738007533533,-631.49445292,0.00015,2]
[350633237,1738007533570,-500.0,0.00010958,2]
[350633238,1738007533580,-935.39,0.00010958,2]